fUST/lending_fUST_20250914
["ID","MTS","AMOUNT","RATE_DAILY","PERIOD"]
[385373828,1757797840735,-480.0,0.00024657,3]
[385373829,1757797840744,-480.0,0.00024657,3]
[385373830,1757797840753,-1159.17,0.00024657,3]
[385373831,1757797840762,-480.0,0.00024657,3]
[385373832,1757797840771,-480.0,0.00024657,3]
[385373833,1757797840781,-593.42,0.00024657,3]
[385373834,1757797840790,-499.17,0.00024657,3]
[385373835,1757797840799,-480.0,0.00024657,3]
[385373836,1757797840808,-480.0,0.00024657,3]
[385373837,1757797840817,-480.0,0.00024657,3]
[385373838,1757797840826,-480.0,0.00024657,3]
[385373839,1757797840836,-480.0,0.00024657,3]
[385373840,1757797840845,-480.0,0.00024657,3]
[385373841,1757797840855,-480.0,0.00024657,3]
[385373842,1757797840864,-480.93965172,0.00024657,3]
[385373843,1757797840873,-480.0,0.00024657,3]
[385373844,1757797840882,-709.35,0.00024657,3]
[385373845,1757797840892,-481.01164975,0.00024657,3]
[385373846,1757797840901,-480.0,0.00024657,3]
[385373847,1757797840910,-480.0,0.00024657,3]
[385373848,1757797840919,-592.23,0.00024657,3]
[385373849,1757797840929,-480.0,0.00024657,3]
[385373850,1757797840938,-480.0,0.00024657,3]
[385373851,1757797840947,-480.0,0.00024657,3]
[385373852,1757797840956,-420.41954453,0.00024657,3]
[385373853,1757797840965,-480.0,0.00024657,3]
[385373854,1757797840975,-480.0,0.00024657,3]
[385373855,1757797840984,-480.0,0.00024657,3]
[385373856,1757797840992,-480.0,0.00024657,3]
[385373857,1757797841002,-480.0,0.00024657,3]
[385373858,1757797841011,-480.0,0.00024657,3]
[385373859,1757797841020,-480.0,0.00024657,3]
[385373860,1757797841030,-302.02312182,0.00024657,3]
[385373861,1757797841039,-499.03,0.00024657,3]
[385373862,1757797841048,-535.64,0.00024657,3]
[385373863,1757797841057,-513.58,0.00024657,3]
[385373864,1757797841066,-480.0,0.00024657,3]
[385373865,1757797841075,-1162.21,0.00024657,3]
[385373866,1757797841084,-2915.89,0.00024657,3]
[385373867,1757797841093,-480.0,0.00024657,3]
[385373868,1757797841102,-480.0,0.00024657,3]
[385373869,1757797841111,-481.34495879,0.00024657,3]
[385373870,1757797841120,-480.0,0.00024657,3]
[385373871,1757797841129,-480.0,0.00024657,3]
[385373872,1757797841139,-480.0,0.00024657,3]
[385373873,1757797841147,-480.0,0.00024657,3]
[385373874,1757797841156,-756.98,0.00024657,3]
[385373875,1757797841166,-483.60710863,0.00024657,3]
[385373876,1757797841175,-480.0,0.00024657,3]
[385373877,1757797841184,-480.0,0.00024657,3]
[385373878,1757797841193,-480.0,0.00024657,3]
[385373879,1757797841201,-1032.73,0.00024657,3]
[385373880,1757797841210,-480.0,0.00024657,3]
[385373881,1757797841219,-480.0,0.00024657,3]
[385373882,1757797841229,-480.0,0.00024657,3]
[385373883,1757797841238,-614.43,0.00024657,3]
[385373884,1757797841247,-480.0,0.00024657,3]
[385373885,1757797841256,-480.0,0.00024657,3]
[385373886,1757797841265,-480.0,0.00024657,3]
[385373887,1757797841274,-480.0,0.00024657,3]
[385373888,1757797841286,-480.0,0.00024657,3]
[385373889,1757797841296,-480.0,0.00024657,3]
[385373890,1757797841305,-1595.41,0.00024657,3]
[385373891,1757797841314,-480.0,0.00024657,3]
[385373892,1757797841323,-480.0,0.00024657,3]
[385373893,1757797841333,-480.0,0.00024657,3]
[385373894,1757797841341,-949.66,0.00024657,3]
[385373895,1757797841351,-289.39703927,0.00024657,3]
[385373896,1757797841362,-538.72797756,0.00024657,3]
[385373897,1757797841371,-480.0,0.00024657,3]
[385373898,1757797841380,-587.02381165,0.00024657,3]
[385373899,1757797841390,-480.0,0.00024657,3]
[385373900,1757797841399,-480.0,0.00024657,3]
[385373901,1757797841408,-480.0,0.00024657,3]
[385373902,1757797841417,-480.0,0.00024657,3]
[385373903,1757797841426,-480.0,0.00024657,3]
[385373904,1757797841435,-151.0,0.00024657,7]
[385373905,1757797841444,-480.0,0.00024657,3]
[385373906,1757797841453,-151.0,0.00024657,7]
[385373907,1757797841462,-480.0,0.00024657,3]
[385373908,1757797841471,-151.0,0.00024657,7]
[385373909,1757797841480,-480.0,0.00024657,3]
[385373910,1757797841489,-151.0,0.00024657,7]
[385373911,1757797841499,-480.0,0.00024657,3]
[385373912,1757797841508,-480.0,0.00024657,3]
[385373913,1757797841517,-561.34,0.00024657,3]
[385373914,1757797841526,-480.0,0.00024657,3]
[385373915,1757797841535,-151.0,0.00024657,7]
[385373916,1757797841544,-480.0,0.00024657,3]
[385373917,1757797841554,-151.0,0.00024657,7]
[385373918,1757797841563,-1111.44,0.00024657,3]
[385373919,1757797841572,-480.0,0.00024657,3]
[385373920,1757797841581,-151.0,0.00024657,7]
[385373921,1757797841590,-151.0,0.00024657,7]
[385373922,1757797841599,-480.0,0.00024657,3]
[385373923,1757797841609,-480.0,0.00024657,3]
[385373924,1757797841618,-480.0,0.00024657,3]
[385373925,1757797841627,-480.0,0.00024657,3]
[385373926,1757797841637,-480.0,0.00024657,3]
[385373927,1757797841646,-480.0,0.00024657,3]
[385373928,1757797841655,-1208.29,0.00024657,3]
[385373929,1757797841664,-580.83,0.00024657,3]
[385373930,1757797841674,-151.0,0.00024657,7]
[385373931,1757797841683,-152.512362,0.00024657,7]
[385373932,1757797841692,-154.649295,0.00024657,7]
[385373933,1757797841701,-480.0,0.00024657,3]
[385373934,1757797841710,-663.09,0.00024657,3]
[385373935,1757797841719,-151.0,0.00024657,7]
[385373936,1757797841730,-480.0,0.00024657,3]
[385373937,1757797841739,-488.61,0.00024657,3]
[385373938,1757797841749,-1298.16,0.00024657,3]
[385373939,1757797841759,-480.0,0.00024657,3]
[385373940,1757797841767,-151.0,0.00024657,7]
[385373941,1757797841776,-480.0,0.00024657,3]
[385373942,1757797841786,-204.157139,0.00024657,7]
[385373943,1757797841795,-546.16,0.00024657,3]
[385373944,1757797841804,-204.157139,0.00024657,7]
[385373945,1757797841813,-480.0,0.00024657,3]
[385373946,1757797841822,-3822.56,0.00024657,3]
[385373947,1757797841831,-204.157139,0.00024657,7]
[385373948,1757797841840,-151.0,0.00024657,7]
[385373949,1757797841849,-204.157139,0.00024657,7]
[385373950,1757797841858,-480.0,0.00024657,3]
[385373951,1757797841867,-160.0,0.00024657,3]
[385373952,1757797841877,-480.0,0.00024657,3]
[385373953,1757797841887,-480.0,0.00024657,3]
[385373954,1757797841896,-480.0,0.00024657,3]
[385373955,1757797841906,-544.9,0.00024657,3]
[385373956,1757797841916,-4731.51,0.00024657,3]
[385373957,1757797841925,-480.0,0.00024657,3]
[385373958,1757797841934,-480.0,0.00024657,3]
[385373959,1757797841943,-151.0,0.00024657,7]
[385373960,1757797841953,-528.34,0.00024657,3]
[385373961,1757797841962,-769.92,0.00024657,3]
[385373962,1757797841971,-151.0,0.00024657,7]
[385373963,1757797841981,-480.0,0.00024657,3]
[385373964,1757797841990,-5408.73,0.00024657,3]
[385373965,1757797841999,-480.0,0.00024657,3]
[385373966,1757797842009,-820.76,0.00024657,3]
[385373967,1757797842018,-1069.75,0.00024657,3]
[385373968,1757797842027,-480.0,0.00024657,3]
[385373969,1757797842037,-539.7,0.00024657,3]
[385373970,1757797842046,-1530.54,0.00024657,3]
[385373971,1757797842055,-652.976066,0.00024657,7]
[385373972,1757797842064,-809.45,0.00024657,3]
[385373973,1757797842074,-151.0,0.00024657,7]
[385373974,1757797842083,-652.976066,0.00024657,7]
[385373975,1757797842092,-2741.13,0.00024657,3]
[385373976,1757797842103,-480.0,0.00024657,3]
[385373977,1757797842113,-652.976066,0.00024657,7]
[385373978,1757797842123,-652.976066,0.00024657,7]
[385373979,1757797842133,-1053.88,0.00024657,3]
[385373980,1757797842143,-480.0,0.00024657,3]
[385373981,1757797842152,-480.0,0.00024657,3]
[385373982,1757797842161,-705.89,0.00024657,3]
[385373983,1757797842170,-480.0,0.00024657,3]
[385373984,1757797842179,-480.0,0.00024657,3]
[385373985,1757797842188,-480.0,0.00024657,3]
[385373986,1757797842197,-480.0,0.00024657,3]
[385373987,1757797842207,-480.0,0.00024657,3]
[385373988,1757797842216,-487.91,0.00024657,3]
[385373989,1757797842225,-1792.23,0.00024657,3]
[385373990,1757797842234,-944.906474,0.00024657,7]
[385373991,1757797842243,-480.0,0.00024657,3]
[385373992,1757797842252,-1076.17,0.00024657,3]
[385373993,1757797842261,-944.906474,0.00024657,7]
[385373994,1757797842270,-151.0,0.00024657,7]
[385373995,1757797842279,-944.906474,0.00024657,7]
[385373996,1757797842291,-677.57,0.00024657,3]
[385373997,1757797842300,-702.49,0.00024657,3]
[385373998,1757797842310,-944.906474,0.00024657,7]
[385373999,1757797842319,-480.0,0.00024657,3]
[385374000,1757797842328,-237.785628,0.00024657,7]
[385374001,1757797842339,-237.785628,0.00024657,7]
[385374002,1757797842348,-716.49,0.00024657,3]
[385374003,1757797842357,-237.785628,0.00024657,7]
[385374004,1757797842368,-1758.73,0.00024657,3]
[385374005,1757797842378,-237.785628,0.00024657,7]
[385374006,1757797842387,-715.05,0.00024657,3]
[385374007,1757797842396,-400.0,0.00024657,3]
[385374008,1757797842405,-480.0,0.00024657,3]
[385374009,1757797842415,-1041.19,0.00024657,3]
[385374010,1757797842423,-3039.23,0.00024657,3]
[385374011,1757797842432,-18172.37,0.00024657,3]
[385374012,1757797842441,-480.0,0.00024657,3]
[385374013,1757797842450,-480.0,0.00024657,3]
[385374014,1757797842460,-480.0,0.00024657,3]
[385374015,1757797842469,-480.0,0.00024657,3]
[385374016,1757797842478,-160.0,0.00024657,3]
[385374017,1757797842610,-1407.05,0.00024657,3]
[385374018,1757797842620,-160.0,0.00024657,7]
[385374019,1757797842629,-480.0,0.00024657,3]
[385374020,1757797842639,-480.0,0.00024657,3]
[385374021,1757797842648,-480.0,0.00024657,3]
[385374022,1757797842657,-480.0,0.00024657,3]
[385374023,1757797842667,-480.0,0.00024657,3]
[385374024,1757797842676,-480.0,0.00024657,3]
[385374025,1757797842686,-480.0,0.00024657,3]
[385374026,1757797842696,-480.0,0.00024657,3]
[385374027,1757797842705,-480.0,0.00024657,3]
[385374028,1757797842715,-770.53,0.00024657,3]
[385374029,1757797842725,-480.0,0.00024657,3]
[385374030,1757797842734,-480.0,0.00024657,3]
[385374031,1757797842744,-3266.41,0.00024657,3]
[385374032,1757797842754,-2697.42470495,0.00024657,2]
[385374033,1757797842763,-570.8,0.00024657,3]
[385374034,1757797842773,-151.0,0.00024657,7]
[385374035,1757797842782,-199.66219349,0.00024657,3]
[385374036,1757797842792,-480.0,0.00024657,3]
[385374037,1757797842801,-571.64469768,0.00024657,3]
[385374038,1757797842812,-480.0,0.00024657,3]
[385374039,1757797842821,-1148.94,0.00024657,3]
[385374040,1757797842831,-579.54515618,0.00024657,3]
[385374041,1757797842840,-480.0,0.00024657,3]
[385374042,1757797842850,-628.62,0.00024657,3]
[385374043,1757797842860,-480.0,0.00024657,3]
[385374044,1757797842869,-2158.32,0.00024657,3]
[385374045,1757797842879,-480.0,0.00024657,3]
[385374046,1757797842889,-480.0,0.00024657,3]
[385374047,1757797842898,-480.0,0.00024657,3]
[385374048,1757797842908,-1077.2,0.00024657,3]
[385374049,1757797842918,-480.0,0.00024657,3]
[385374050,1757797842927,-480.0,0.00024657,3]
[385374051,1757797842936,-169.877626,0.00024657,7]
[385374052,1757797842945,-620.58,0.00024657,3]
[385374053,1757797842954,-151.0,0.00024657,7]
[385374054,1757797842963,-1551.49,0.00024657,3]
[385374055,1757797842972,-612.64,0.00024657,3]
[385374056,1757797842981,-151.0,0.00024657,7]
[385374057,1757797842990,-151.0,0.00024657,7]
[385374058,1757797842999,-1090.5,0.00024657,3]
[385374059,1757797843009,-151.0,0.00024657,7]
[385374060,1757797843018,-480.0,0.00024657,3]
[385374061,1757797843028,-5972.34,0.00024657,3]
[385374062,1757797843036,-151.0,0.00024657,7]
[385374063,1757797843045,-480.0,0.00024657,3]
[385374064,1757797843054,-151.0,0.00024657,7]
[385374065,1757797843063,-480.0,0.00024657,3]
[385374066,1757797843072,-151.0,0.00024657,7]
[385374067,1757797843081,-1242.41,0.00024657,3]
[385374068,1757797843090,-3138.73,0.00024657,3]
[385374069,1757797843100,-151.0,0.00024657,7]
[385374070,1757797843109,-480.0,0.00024657,3]
[385374071,1757797843118,-151.0,0.00024657,7]
[385374072,1757797843127,-1388.15,0.00024657,3]
[385374073,1757797843136,-2041.77,0.00024657,3]
[385374074,1757797843145,-1724.09,0.00024657,3]
[385374075,1757797843154,-480.0,0.00024657,3]
[385374076,1757797843163,-480.0,0.00024657,3]
[385374077,1757797843172,-587.3,0.00024657,3]
[385374078,1757797843181,-151.0,0.00024657,7]
[385374079,1757797843190,-251.821172,0.00024657,7]
[385374080,1757797843199,-480.0,0.00024657,3]
[385374081,1757797843208,-251.821172,0.00024657,7]
[385374082,1757797843217,-594.79,0.00024657,3]
[385374083,1757797843226,-480.0,0.00024657,3]
[385374084,1757797843235,-251.821172,0.00024657,7]
[385374085,1757797843244,-480.0,0.00024657,3]
[385374086,1757797843253,-251.821172,0.00024657,7]
[385374087,1757797843262,-483.16201664,0.00024657,3]
[385374088,1757797843271,-1040.4,0.00024657,3]
[385374089,1757797843284,-217.73838971,0.00024657,3]
[385374090,1757797843293,-151.0,0.00024657,7]
[385374091,1757797843302,-531.13137412,0.00024657,3]
[385374092,1757797843311,-531.13137412,0.00024657,7]
[385374093,1757797843321,-979.92,0.00024657,3]
[385374094,1757797843331,-4373.74,0.00024657,3]
[385374095,1757797843340,-480.0,0.00024657,3]
[385374096,1757797843349,-4160.03,0.00024657,3]
[385374097,1757797843360,-762.75,0.00024657,3]
[385374098,1757797843369,-36127.25,0.00024657,3]
[385374099,1757797843378,-480.0,0.00024657,3]
[385374100,1757797843387,-154.05897914,0.00024657,3]
[385374101,1757797843396,-480.0,0.00024657,3]
[385374102,1757797843405,-480.0,0.00024657,3]
[385374103,1757797843414,-480.0,0.00024657,3]
[385374104,1757797843423,-480.0,0.00024657,3]
[385374105,1757797843432,-177.275066,0.00024657,7]
[385374106,1757797843442,-480.0,0.00024657,3]
[385374107,1757797843450,-480.0,0.00024657,3]
[385374108,1757797843459,-1910.85,0.00024657,3]
[385374109,1757797843469,-177.275066,0.00024657,7]
[385374110,1757797843478,-177.275066,0.00024657,7]
[385374111,1757797843486,-177.275066,0.00024657,7]
[385374112,1757797843496,-480.0,0.00024657,3]
[385374113,1757797843505,-1401.88,0.00024657,3]
[385374114,1757797843514,-692.19,0.00024657,3]
[385374115,1757797843523,-481.718405,0.00024657,3]
[385374116,1757797843532,-1936.75,0.00024657,3]
[385374117,1757797843542,-1316.22,0.00024657,3]
[385374118,1757797843551,-480.0,0.00024657,3]
[385374119,1757797843560,-480.0,0.00024657,3]
[385374120,1757797843569,-498.73699586,0.00024657,3]
[385374121,1757797843580,-368.30090608,0.00024657,3]
[385374122,1757797843590,-189.830884,0.00024657,7]
[385374123,1757797843599,-480.0,0.00024657,3]
[385374124,1757797843609,-189.830884,0.00024657,7]
[385374125,1757797843618,-1934.0,0.00024657,3]
[385374126,1757797843627,-189.830884,0.00024657,7]
[385374127,1757797843636,-480.0,0.00024657,3]
[385374128,1757797843645,-480.0,0.00024657,3]
[385374130,1757797843655,-189.830884,0.00024657,7]
[385374132,1757797843664,-722.51,0.00024657,3]
[385374134,1757797843672,-480.0,0.00024657,3]
[385374136,1757797843682,-3777.73,0.00024657,3]
[385374138,1757797843691,-8117.93,0.00024657,3]
[385374140,1757797843700,-480.0,0.00024657,3]
[385374141,1757797843709,-480.0,0.00024657,3]
[385374143,1757797843719,-3222.89,0.00024657,3]
[385374146,1757797843728,-6888.82,0.00024657,3]
[385374148,1757797843738,-480.0,0.00024657,3]
[385374150,1757797843747,-480.0,0.00024657,3]
[385374152,1757797843756,-480.95494393,0.00024657,3]
[385374153,1757797843765,-4598.85,0.00024657,3]
[385374154,1757797843775,-8378.03,0.00024657,3]
[385374155,1757797843784,-681.39,0.00024657,3]
[385374156,1757797843793,-480.0,0.00024657,3]
[385374157,1757797843802,-552.83,0.00024657,3]
[385374158,1757797843811,-480.0,0.00024657,3]
[385374159,1757797843820,-1901.54,0.00024657,3]
[385374160,1757797843830,-730.27,0.00024657,3]
[385374161,1757797843839,-151.0,0.00024657,7]
[385374162,1757797843848,-947.38,0.00024657,3]
[385374163,1757797843858,-624.9,0.00024657,3]
[385374164,1757797843867,-480.0,0.00024657,3]
[385374165,1757797843877,-283.106688,0.00024657,7]
[385374166,1757797843886,-480.0,0.00024657,3]
[385374167,1757797843896,-480.0,0.00024657,3]
[385374168,1757797843905,-283.106688,0.00024657,7]
[385374169,1757797843914,-522.77,0.00024657,3]
[385374170,1757797843923,-283.106688,0.00024657,7]
[385374171,1757797843933,-480.0,0.00024657,3]
[385374173,1757797843942,-283.106688,0.00024657,7]
[385374174,1757797843952,-630.5,0.00024657,3]
[385374175,1757797843961,-151.0,0.00024657,7]
[385374176,1757797843971,-480.0,0.00024657,3]
[385374177,1757797843980,-480.0,0.00024657,3]
[385374178,1757797843989,-151.0,0.00024657,7]
[385374179,1757797843998,-654.54,0.00024657,3]
[385374180,1757797844008,-480.0,0.00024657,3]
[385374181,1757797844018,-480.0,0.00024657,3]
[385374182,1757797844027,-592.21,0.00024657,3]
[385374183,1757797844037,-787.931978,0.00024657,7]
[385374184,1757797844048,-480.0,0.00024657,3]
[385374185,1757797844057,-787.931978,0.00024657,7]
[385374186,1757797844067,-151.0,0.00024657,7]
[385374187,1757797844076,-787.931978,0.00024657,7]
[385374188,1757797844086,-569.42,0.00024657,3]
[385374189,1757797844095,-535.65,0.00024657,3]
[385374190,1757797844104,-151.0,0.00024657,7]
[385374191,1757797844113,-787.931978,0.00024657,7]
[385374192,1757797844123,-1562.3,0.00024657,3]
[385374193,1757797844132,-533.9,0.00024657,3]
[385374194,1757797844141,-480.0,0.00024657,3]
[385374195,1757797844151,-480.0,0.00024657,3]
[385374196,1757797844161,-5233.66,0.00024657,3]
[385374197,1757797844170,-500.0,0.00024673,2]
[385374198,1757797844179,-500.0,0.00024673,2]
[385374199,1757797844189,-500.0,0.00024673,2]
[385374200,1757797844198,-500.0,0.00024673,2]
[385374201,1757797844207,-500.0,0.00024673,2]
[385374202,1757797844217,-317.53756981,0.00024673,2]
[385374203,1757797844228,-500.0,0.00024673,2]
[385374204,1757797844240,-503.34294979,0.00024673,2]
[385374205,1757797844249,-500.0,0.00024673,2]
[385374206,1757797844258,-500.0,0.00024673,2]
[385374207,1757797844267,-519.46294834,0.00024673,2]
[385374208,1757797844277,-500.0,0.00024673,2]
[385374209,1757797844287,-500.0,0.00024673,2]
[385374210,1757797844298,-500.0,0.00024673,2]
[385374211,1757797844308,-500.0,0.00024673,2]
[385374212,1757797844317,-500.0,0.00024673,2]
[385374213,1757797844325,-500.59867416,0.00024673,2]
[385374214,1757797844336,-500.0,0.00024673,2]
[385374215,1757797844347,-500.0,0.00024673,2]
[385374216,1757797844356,-500.32943356,0.00024673,2]
[385374217,1757797844367,-500.0,0.00024673,2]
[385374218,1757797844376,-624.97859352,0.00024673,2]
[385374219,1757797844385,-500.0,0.00024673,2]
[385374220,1757797844394,-500.0,0.00024673,2]
[385374221,1757797844404,-524.45192084,0.00024673,2]
[385374222,1757797844414,-500.67820451,0.00024673,2]
[385374223,1757797844425,-163.20376964,0.00024673,2]
[385374224,1757797844435,-500.0,0.00024673,2]
[385374225,1757797844444,-500.0,0.00024673,2]
[385374226,1757797844454,-500.0,0.00024673,2]
[385374227,1757797844464,-160.73369579,0.00024673,2]
[385374228,1757797844474,-500.0,0.00024673,2]
[385374229,1757797844485,-170.01810025,0.00024673,2]
[385374230,1757797844495,-500.0828896,0.00024673,2]
[385374231,1757797844505,-500.73826874,0.00024673,2]
[385374232,1757797844514,-500.733017,0.00024673,2]
[385374233,1757797844524,-500.0,0.00024673,2]
[385374234,1757797844533,-174.47182857,0.00024673,2]
[385374235,1757797844543,-500.0,0.00024673,2]
[385374236,1757797844554,-500.0,0.00024673,2]
[385374237,1757797844563,-500.0,0.00024673,2]
[385374238,1757797844573,-500.0,0.00024673,2]
[385374239,1757797844582,-500.0,0.00024673,2]
[385374240,1757797844591,-500.0,0.00024673,2]
[385374241,1757797844601,-500.0,0.00024673,2]
[385374242,1757797844610,-202.65913064,0.00024673,2]
[385374243,1757797844619,-155.32462235,0.00024673,2]
[385374244,1757797844628,-500.0,0.00024673,2]
[385374245,1757797844638,-500.0,0.00024673,2]
[385374246,1757797844647,-500.0,0.00024673,2]
[385374247,1757797844657,-500.36869374,0.00024673,2]
[385374248,1757797844666,-500.0,0.00024673,2]
[385374249,1757797844675,-515.12731466,0.00024673,2]
[385374250,1757797844685,-500.0,0.00024673,2]
[385374251,1757797844694,-500.0,0.00024673,2]
[385374252,1757797844703,-500.0,0.00024673,2]
[385374253,1757797844713,-500.08724029,0.00024673,2]
[385374254,1757797844722,-447.7137535,0.00024673,2]
[385374255,1757797844737,-500.0,0.00024673,2]
[385374256,1757797844749,-500.0,0.00024673,2]
[385374257,1757797844757,-500.0,0.00024673,2]
[385374258,1757797844767,-218.15163113,0.00024673,2]
[385374259,1757797844776,-501.45917432,0.00024673,2]
[385374260,1757797844785,-528.08847038,0.00024673,2]
[385374261,1757797844794,-151.0,0.00024673,7]
[385374262,1757797844803,-151.0,0.00024673,7]
[385374263,1757797844813,-151.0,0.00024673,7]
[385374264,1757797844823,-151.0,0.00024673,7]
[385374265,1757797844832,-151.0,0.00024673,7]
[385374266,1757797844841,-151.0,0.00024673,7]
[385374267,1757797844852,-151.0,0.00024673,7]
[385374268,1757797844862,-151.0,0.00024673,7]
[385374269,1757797844871,-151.0,0.00024673,7]
[385374270,1757797844880,-151.0,0.00024673,7]
[385374271,1757797844889,-151.0,0.00024673,2]
[385374272,1757797844899,-151.0,0.00024673,7]
[385374273,1757797844907,-151.0,0.00024673,7]
[385374274,1757797844916,-151.0,0.00024673,7]
[385374275,1757797844925,-151.0,0.00024673,7]
[385374276,1757797844935,-151.0,0.00024673,7]
[385374277,1757797844943,-151.0,0.00024673,7]
[385374278,1757797844953,-151.0,0.00024673,7]
[385374279,1757797844962,-151.0,0.00024673,7]
[385374280,1757797844972,-151.0,0.00024673,7]
[385374281,1757797844982,-151.0,0.00024673,7]
[385374282,1757797844992,-151.0,0.00024673,7]
[385374283,1757797845001,-151.0,0.00024673,7]
[385374284,1757797845012,-160.0,0.0002469,2]
[385374285,1757797845022,-151.0,0.000247,7]
[385374286,1757797845033,-151.0,0.000247,10]
[385374287,1757797845042,-17896.98574374,0.00024731,7]
[385374288,1757797845051,-1000.0,0.00024739,2]
[385374289,1757797845061,-1000.0,0.00024739,2]
[385374290,1757797845070,-485.12,0.00024739,2]
[385374291,1757797845081,-308.0,0.00024766,2]
[385374292,1757797845091,-151.0,0.000248,8]
[385374293,1757797845102,-151.0,0.000248,8]
[385374294,1757797845111,-705.96793741,0.00024822,2]
[385374295,1757797845121,-2900.0,0.00024829,2]
[385374296,1757797845130,-151.0,0.00024831,2]
[385374297,1757797845140,-154.96604367,0.00024831,2]
[385374298,1757797845149,-661.6228381,0.00024872,2]
[385374299,1757797845158,-502.64486148,0.00024873,2]
[385374300,1757797845167,-1605.91545436,0.00024896,2]
[385374301,1757797845177,-151.0,0.000249,7]
[385374302,1757797845186,-151.0,0.000249,7]
[385374303,1757797845195,-151.0,0.000249,7]
[385374304,1757797845205,-151.0,0.000249,7]
[385374305,1757797845215,-151.0,0.000249,7]
[385374306,1757797845224,-151.0,0.000249,7]
[385374307,1757797845234,-151.0,0.000249,7]
[385374308,1757797845243,-151.0,0.000249,7]
[385374309,1757797845252,-151.0,0.000249,7]
[385374310,1757797845262,-151.0,0.000249,7]
[385374311,1757797845271,-151.0,0.000249,7]
[385374312,1757797845281,-151.0,0.000249,7]
[385374313,1757797845294,-185.501479,0.000249,7]
[385374314,1757797845304,-151.0,0.000249,7]
[385374315,1757797845313,-151.0,0.000249,7]
[385374316,1757797845322,-198.695499,0.000249,7]
[385374317,1757797845450,-151.0,0.000249,7]
[385374318,1757797845460,-151.0,0.000249,7]
[385374319,1757797845469,-151.0,0.000249,7]
[385374320,1757797845479,-151.0,0.000249,7]
[385374321,1757797845488,-151.0,0.000249,7]
[385374322,1757797845498,-151.0,0.000249,7]
[385374323,1757797845507,-151.0,0.000249,7]
[385374324,1757797845516,-151.0,0.000249,7]
[385374325,1757797845526,-152.185162,0.000249,7]
[385374326,1757797845535,-267553.817423,0.000249,2]
[385374327,1757797845545,-177.275066,0.000249,7]
[385374328,1757797845554,-177.275066,0.000249,7]
[385374329,1757797845563,-177.275066,0.000249,7]
[385374330,1757797845572,-177.275066,0.000249,7]
[385374331,1757797845581,-189.830884,0.000249,7]
[385374332,1757797845590,-189.830884,0.000249,7]
[385374333,1757797845600,-189.830884,0.000249,7]
[385374334,1757797845610,-189.830884,0.000249,7]
[385374335,1757797845619,-151.0,0.000249,7]
[385374336,1757797845628,-283.106688,0.000249,7]
[385374337,1757797845639,-283.106688,0.000249,7]
[385374338,1757797845648,-283.106688,0.000249,7]
[385374339,1757797845657,-283.106688,0.000249,7]
[385374340,1757797845667,-151.0,0.000249,7]